fUSD/lending_fUSD_20250519
["ID","MTS","AMOUNT","RATE_DAILY","PERIOD"]
[361620816,1747644655219,-420.0,0.00013808,2]
[361620817,1747644655228,-420.0,0.00013808,2]
[361620818,1747644655239,-400.0,0.00013808,2]
[361620819,1747644655249,-753.82,0.00013808,2]
[361620820,1747644655259,-1876.13,0.00013808,2]
[361620821,1747644655268,-746.22,0.00013808,2]
[361620822,1747644655278,-706.2,0.00013808,2]
[361620823,1747644655288,-151.0,0.00013808,2]
[361620824,1747644655298,-151.0,0.00013808,2]
[361620825,1747644655307,-420.0,0.00013808,2]
[361620826,1747644655317,-420.0,0.00013808,2]
[361620827,1747644655327,-248.030125,0.00013808,2]
[361620828,1747644655336,-1233.1,0.00013808,2]
[361620829,1747644655345,-181.1517107,0.00013808,2]
[361620830,1747644655355,-420.0,0.00013808,2]
[361620831,1747644655366,-420.0,0.00013808,2]
[361620832,1747644655375,-420.0,0.00013808,2]
[361620833,1747644655385,-420.0,0.00013808,2]
[361620834,1747644655396,-420.0,0.00013808,2]
[361620835,1747644655407,-996.96,0.00013808,2]
[361620836,1747644655417,-803.53,0.00013808,2]
[361620837,1747644655427,-443.21,0.00013808,2]
[361620838,1747644655437,-420.0,0.00013808,2]
[361620839,1747644655446,-804.53,0.00013808,2]
[361620840,1747644655457,-420.0,0.00013808,2]
[361620841,1747644655466,-506.93,0.00013808,2]
[361620842,1747644655476,-420.0,0.00013808,2]
[361620843,1747644655486,-167.091643,0.00013808,2]
[361620844,1747644655495,-167.091643,0.00013808,2]
[361620845,1747644655504,-716.64,0.00013808,2]
[361620846,1747644655514,-2127.3,0.00013808,2]
[361620847,1747644655523,-420.0,0.00013808,2]
[361620848,1747644655533,-167.091643,0.00013808,2]
[361620849,1747644655544,-167.091643,0.00013808,2]
[361620850,1747644655553,-966.51,0.00013808,2]
[361620851,1747644655562,-420.0,0.00013808,2]
[361620852,1747644655572,-151.0,0.00013808,2]
[361620853,1747644655581,-151.0,0.00013808,2]
[361620854,1747644655591,-340.0,0.00013808,2]
[361620855,1747644655601,-420.0,0.00013808,2]
[361620856,1747644655610,-503.17429462,0.00013808,2]
[361620857,1747644655620,-441.01,0.00013808,2]
[361620858,1747644655629,-420.0,0.00013808,2]
[361620859,1747644655640,-420.0,0.00013808,2]
[361620860,1747644655650,-563.38,0.00013808,2]
[361620861,1747644655660,-730.8,0.00013808,2]
[361620862,1747644655672,-420.0,0.00013808,2]
[361620863,1747644655682,-465.31,0.00013808,2]
[361620864,1747644655691,-420.0,0.00013808,2]
[361620865,1747644655701,-420.0,0.00013808,2]
[361620866,1747644655712,-420.0,0.00013808,2]
[361620867,1747644655721,-151.0,0.00013808,2]
[361620868,1747644655731,-654.64,0.00013808,2]
[361620869,1747644655741,-469.42,0.00013808,2]
[361620870,1747644655752,-599.17,0.00013808,2]
[361620871,1747644655762,-465.95,0.00013808,2]
[361620872,1747644655772,-420.0,0.00013808,2]
[361620873,1747644655781,-420.0,0.00013808,2]
[361620874,1747644655791,-420.0,0.00013808,2]
[361620875,1747644655800,-536.70480965,0.00013808,2]
[361620876,1747644655810,-1039.69,0.00013808,2]
[361620877,1747644655819,-420.0,0.00013808,2]
[361620878,1747644655830,-420.0,0.00013808,2]
[361620879,1747644655840,-420.0,0.00013808,2]
[361620880,1747644655851,-420.0,0.00013808,2]
[361620881,1747644655860,-559.78,0.00013808,2]
[361620882,1747644655870,-1359.34,0.00013808,2]
[361620883,1747644655880,-570.15,0.00013808,2]
[361620884,1747644655889,-22464.854027,0.00013808,2]
[361620885,1747644655899,-818.03,0.00013808,2]
[361620886,1747644655909,-420.0,0.00013808,2]
[361620887,1747644655919,-164.17,0.00013808,2]
[361620888,1747644655928,-420.0,0.00013808,2]
[361620889,1747644655938,-420.0,0.00013808,2]
[361620890,1747644655948,-1112.66,0.00013808,2]
[361620891,1747644655957,-1109.35,0.00013808,2]
[361620892,1747644655967,-420.0,0.00013808,2]
[361620893,1747644655977,-596.47,0.00013808,2]
[361620894,1747644655986,-910.06,0.00013808,2]
[361620895,1747644655996,-550.95,0.00013808,2]
[361620896,1747644656010,-870.65,0.00013808,2]
[361620897,1747644656020,-420.0,0.00013808,2]
[361620898,1747644656030,-151.0,0.00013808,2]
[361620899,1747644656041,-151.0,0.00013808,2]
[361620900,1747644656050,-1135.8,0.00013808,2]
[361620901,1747644656060,-151.0,0.00013808,2]
[361620902,1747644656069,-1845.75,0.00013808,2]
[361620903,1747644656079,-151.0,0.00013808,2]
[361620904,1747644656089,-420.0,0.00013808,2]
[361620905,1747644656099,-739.08,0.00013808,2]
[361620906,1747644656109,-460.37,0.00013808,2]
[361620907,1747644656122,-420.0,0.00013808,2]
[361620908,1747644656131,-156.890097,0.00013808,2]
[361620909,1747644656140,-507.76,0.00013808,2]
[361620910,1747644656150,-599.68,0.00013808,2]
[361620911,1747644656161,-420.0,0.00013808,2]
[361620912,1747644656171,-156.890097,0.00013808,2]
[361620913,1747644656181,-1132.51,0.00013808,2]
[361620914,1747644656191,-420.0,0.00013808,2]
[361620915,1747644656200,-151.0,0.00013808,2]
[361620916,1747644656210,-500.0,0.00013808,2]
[361620917,1747644656220,-1189.77,0.00013808,2]
[361620918,1747644656231,-420.0,0.00013808,2]
[361620919,1747644656241,-1042.24,0.00013808,2]
[361620920,1747644656250,-420.0,0.00013808,2]
[361620921,1747644656260,-420.0,0.00013808,2]
[361620922,1747644656270,-675.37,0.00013808,2]
[361620923,1747644656280,-11077.34954669,0.00013808,2]
[361620924,1747644657425,-368.90074707,0.00013598,2]
[361620925,1747644657436,-35724.59925293,0.00013808,2]
[361620926,1747644657515,-1147.35848162,0.00013808,2]
[361620927,1747644657666,-293.49491836,0.00013808,2]
[361620928,1747644721773,962.36,0.00010862,2]
[361620935,1747645388448,258.58474629,0.0001,2]
[361620938,1747645460391,-200.0,0.00012169,2]
[361620939,1747645460418,-595.84675876,0.000122,2]
[361620940,1747645460445,-1000.0,0.000122,2]
[361620941,1747645460473,-200.0,0.00012264,2]
[361620942,1747645460500,-837.76,0.00012314,2]
[361620943,1747645460528,-500.0,0.00012332,2]
[361620944,1747645460555,-200.0,0.00012335,2]
[361620945,1747645460580,-883.59,0.00012336,2]
[361620946,1747645460608,-300.0,0.00012355,2]
[361620947,1747645460634,-16483.19,0.00012356,2]
[361620948,1747645460660,-160.49868445,0.00012398,2]
[361620949,1747645460686,-1000.0,0.000124,2]
[361620950,1747645460712,-500.0,0.00012401,2]
[361620951,1747645460738,-1000.0,0.000125,2]
[361620952,1747645460765,-604.26,0.00012569,2]
[361620953,1747645460790,-1000.0,0.000126,2]
[361620954,1747645460816,-1992.86,0.00012616,2]
[361620955,1747645460842,-300.0,0.00012628,2]
[361620956,1747645460869,-1200.0,0.00012629,2]
[361620957,1747645460894,-10957.43,0.0001263,2]
[361620958,1747645460919,-160.49868443,0.00012649,2]
[361620959,1747645460945,-15322.62,0.00012657,2]
[361620960,1747645460970,-1000.0,0.000127,2]
[361620961,1747645460995,-3610.86,0.00012723,2]
[361620962,1747645461022,-150.0,0.00012727,2]
[361620963,1747645461048,-9060.69,0.00012728,2]
[361620964,1747645461073,-181.33,0.00012728,2]
[361620965,1747645461099,-1000.0,0.000128,2]
[361620966,1747645461126,-165.95,0.0001283,2]
[361620967,1747645461154,-160.49868443,0.000129,2]
[361620968,1747645461180,-1000.0,0.000129,2]
[361620969,1747645461206,-154.95163537,0.00013,2]
[361620970,1747645461232,-8355.74,0.00013,2]
[361620971,1747645461264,-5000.0,0.00013,2]
[361620972,1747645461293,-3245.17,0.00013,2]
[361620973,1747645461321,-3245.17,0.00013,2]
[361620974,1747645461351,-3245.17,0.00013,2]
[361620975,1747645461377,-3245.17,0.00013,2]
[361620976,1747645461403,-3245.17,0.00013,2]
[361620977,1747645461429,-805.14,0.00013041,2]
[361620978,1747645461456,-996.89,0.00013041,2]
[361620979,1747645461482,-442.74197589,0.00013067,2]
[361620980,1747645461511,-689.39565323,0.00013093,2]
[361620981,1747645461539,-962.36,0.00013126,2]
[361620982,1747645461565,-151.0,0.00013147,2]
[361620983,1747645461591,-156.0,0.00013147,2]
[361620984,1747645461617,-207.4,0.00013147,2]
[361620985,1747645461642,-155.0,0.00013147,2]
[361620986,1747645461667,-668.65185757,0.00013147,2]
[361620987,1747645461693,-668.65185757,0.00013147,2]
[361620988,1747645461719,-151.0,0.00013147,2]
[361620989,1747645461747,-1199.20597015,0.00013147,2]
[361620990,1747645461774,-392.0,0.00013226,2]
[361620991,1747645461800,-500.0,0.00013233,2]
[361620992,1747645461826,-500.0,0.00013315,2]
[361620993,1747645461853,-200.0,0.00013352,2]
[361620994,1747645461879,-1335.0,0.00013411,2]
[361620995,1747645461903,-3352.9041,0.00013498,2]
[361620996,1747645461929,-2072.41168571,0.00013537,2]
[361620997,1747645461955,-163.69254391,0.00013547,2]
[361620998,1747645461981,-420.0,0.00013559,2]
[361620999,1747645462008,-500.0,0.00013562,2]
[361621000,1747645462034,-163.69254391,0.00013562,2]
[361621001,1747645462060,-200.0,0.00013565,2]
[361621002,1747645462085,-2500.0,0.00013573,2]
[361621003,1747645462111,-565.17262786,0.00013573,2]
[361621004,1747645462137,-163.69254391,0.00013577,2]
[361621005,1747645462166,-163.69254391,0.00013592,2]
[361621006,1747645462194,-1000.0,0.00013597,2]
[361621007,1747645462223,-500.0,0.00013597,2]
[361621008,1747645462257,-500.0,0.00013597,2]
[361621009,1747645462287,-443.57190317,0.00013597,2]
[361621010,1747645462318,-500.0,0.00013597,2]
[361621011,1747645462344,-500.0,0.00013597,2]
[361621012,1747645462375,-500.0,0.00013597,2]
[361621013,1747645462402,-500.0,0.00013597,2]
[361621014,1747645462433,-500.0,0.00013597,2]
[361621015,1747645462460,-500.0,0.00013597,2]
[361621016,1747645462491,-500.0,0.00013597,2]
[361621017,1747645462520,-500.0,0.00013597,2]
[361621018,1747645462549,-500.0,0.00013597,2]
[361621019,1747645462577,-500.0,0.00013597,2]
[361621020,1747645462607,-500.0,0.00013597,2]
[361621021,1747645462635,-237.04711922,0.00013597,2]
[361621022,1747645462661,-154.11735021,0.00013598,2]
[361621023,1747645462687,-150.09412702,0.00013598,2]
[361621024,1747645462713,-282.7789479,0.00013598,2]
[361621025,1747645462741,-10715.67520494,0.00013598,2]
[361621026,1747645462767,-28906.6783,0.00013598,2]
[361621027,1747645462793,-5000.0,0.00013598,2]
[361621028,1747645462820,-406.2305,0.00013598,2]
[361621029,1747645462847,-1000.0,0.00013598,2]
[361621030,1747645462873,-192.0,0.000136,2]
[361621031,1747645462900,-192.0,0.000136,2]
[361621032,1747645462929,-192.0,0.000136,3]
[361621033,1747645462956,-1000.0,0.000136,2]
[361621034,1747645462983,-163.69254391,0.00013607,2]
[361621035,1747645463013,-163.69254391,0.00013622,2]
[361621036,1747645463042,-10715.67520492,0.00013632,2]
[361621037,1747645463070,-163.69254391,0.00013637,2]
[361621038,1747645463097,-407.6266598,0.00013638,2]
[361621039,1747645463123,-452.61173088,0.00013644,2]
[361621040,1747645463377,-150.09412696,0.00013648,2]
[361621041,1747645463404,-163.69254391,0.00013652,2]
[361621042,1747645463430,-154.1173502,0.00013658,2]
[361621043,1747645463457,-163.69254391,0.00013667,2]
[361621044,1747645463916,-200.0,0.00013668,2]
[361621045,1747645463928,-595.84675876,0.00013668,2]
[361621046,1747645463946,-1000.0,0.00013668,2]
[361621047,1747645463958,-200.0,0.00013668,2]
[361621048,1747645463975,-837.76,0.00013668,2]
[361621049,1747645463994,-500.0,0.00013668,2]
[361621050,1747645464018,-200.0,0.00013668,2]
[361621051,1747645464052,-883.59,0.00013668,2]
[361621052,1747645464064,-300.0,0.00013668,2]
[361621053,1747645464079,-14428.45835064,0.00013668,2]
[361621054,1747645464088,-186.52067712,0.00013673,2]
[361621055,1747645464098,-504.83383511,0.00013673,2]
[361621056,1747645464107,-500.0,0.00013673,2]
[361621057,1747645464116,-500.0,0.00013673,2]
[361621058,1747645464126,-363.37713713,0.00013673,2]
[361621059,1747645464138,-136.62286287,0.00013673,2]
[361621060,1747645464147,-23.87582158,0.00013673,2]
[361621061,1747645464159,-476.12417842,0.00013673,2]
[361621062,1747645464169,-161.92899667,0.00013673,2]
[361621063,1747645464178,-361.94682491,0.00013673,2]
[361621064,1747645464197,-138.34058445,0.00013673,2]
[361621065,1747645464207,-182.76331293,0.00013673,2]
[361621066,1747645464216,-178.89610262,0.00013673,2]
[361621067,1747645464227,-124.87125903,0.00013673,2]
[361621068,1747645464237,-500.0,0.00013673,2]
[361621069,1747645464247,-375.12874097,0.00013673,2]
[361621070,1747645464276,-124.87125903,0.00013673,2]
[361621071,1747645464285,-163.69254391,0.00013682,2]
[361621072,1747645464295,-181.33,0.00013683,2]
[361621073,1747645464304,-134.36619706,0.00013695,2]
[361621074,1747645464316,-21.63380294,0.00013695,2]
[361621075,1747645464325,-693.3919763,0.00013695,2]
[361621076,1747645464335,-151.0,0.00013695,2]
[361621077,1747645464346,-133.97422076,0.00013697,2]
[361621078,1747645464358,-56.64190999,0.00013697,2]
[361621079,1747645464367,-196.70807827,0.00013697,2]
[361621080,1747645464377,-258.68379142,0.00013697,2]
[361621081,1747645464387,-245.55611036,0.00013697,2]
[361621082,1747645464397,-171.88927725,0.00013697,2]
[361621083,1747645464406,-163.69254391,0.00013697,2]
[361621084,1747645464416,-509.81,0.00013698,2]
[361621085,1747645464425,-389.8782888,0.00013698,2]
[361621086,1747645464467,-30.1217112,0.00013698,2]
[361621087,1747645464476,-269.8782888,0.00013698,2]
[361621088,1747645464494,-150.1217112,0.00013698,2]
[361621089,1747645464504,-316.0008729,0.00013698,2]
[361621090,1747645464514,-420.0,0.00013698,2]
[361621091,1747645464523,-313.8774159,0.00013698,2]
[361621092,1747645464540,-106.1225841,0.00013698,2]
[361621093,1747645464549,-420.0,0.00013698,2]
[361621094,1747645464559,-420.0,0.00013698,2]
[361621095,1747645464568,-420.0,0.00013698,2]
[361621096,1747645464578,-380.0,0.00013698,2]
[361621097,1747645464588,-420.0,0.00013698,2]
[361621098,1747645464598,-442.6,0.00013698,2]
[361621099,1747645464607,-255.44357689,0.00013698,2]
[361621100,1747645464617,-420.0,0.00013698,2]
[361621101,1747645464627,-420.0,0.00013698,2]
[361621102,1747645464637,-622.49,0.00013698,2]
[361621103,1747645464646,-420.0,0.00013698,2]
[361621104,1747645464656,-420.0,0.00013698,2]
[361621105,1747645464665,-509.08,0.00013698,2]
[361621106,1747645464675,-651.55,0.00013698,2]
[361621107,1747645464685,-420.0,0.00013698,2]
[361621108,1747645464694,-192.22643421,0.00013698,2]
[361621109,1747645464704,-400.0,0.00013698,2]
[361621110,1747645464714,-420.0,0.00013698,2]
[361621111,1747645464724,-401.93329509,0.00013698,2]
[361621112,1747645464734,-254.70723887,0.00013698,2]
[361621113,1747645464747,-400.0,0.00013698,2]
[361621114,1747645464757,-420.0,0.00013698,2]
[361621115,1747645464767,-434.883648,0.00013698,2]
[361621116,1747645464776,-420.0,0.00013698,2]
[361621117,1747645464786,-157.09438294,0.00013698,2]
[361621118,1747645464795,-420.0,0.00013698,2]
[361621119,1747645464805,-289.2988399,0.00013698,2]
[361621120,1747645464818,-130.7011601,0.00013698,2]
[361621121,1747645464827,-29.79752433,0.00013698,2]
[361621122,1747645464839,-475.62247567,0.00013698,2]
[361621123,1747645464848,-457.75,0.00013698,2]
[361621124,1747645464857,-420.0,0.00013698,2]
[361621125,1747645464867,-435.07,0.00013698,2]
[361621126,1747645464875,-420.0,0.00013698,2]
[361621127,1747645464884,-420.0,0.00013698,2]
[361621128,1747645464894,-400.0,0.00013698,2]
[361621129,1747645464903,-420.0,0.00013698,2]
[361621130,1747645464913,-250.94604394,0.00013698,2]
[361621131,1747645464923,-420.0,0.00013698,2]
[361621132,1747645464932,-478.68,0.00013698,2]
[361621133,1747645464941,-420.0,0.00013698,2]
[361621134,1747645464950,-420.0,0.00013698,2]
[361621135,1747645464960,-400.0,0.00013698,2]
[361621136,1747645464969,-725.66,0.00013698,2]
[361621137,1747645464979,-484.59,0.00013698,2]
[361621138,1747645464988,-420.0,0.00013698,2]
[361621139,1747645465000,-420.0,0.00013698,2]
[361621140,1747645465009,-400.0,0.00013698,2]
[361621141,1747645465018,-420.0,0.00013698,2]
[361621142,1747645465027,-905.26,0.00013698,2]
[361621143,1747645465037,-420.0,0.00013698,2]
[361621144,1747645465047,-420.0,0.00013698,2]
[361621145,1747645465056,-730.32,0.00013698,2]
[361621146,1747645465065,-420.0,0.00013698,2]
[361621147,1747645465074,-1245.9,0.00013698,2]
[361621148,1747645465083,-420.0,0.00013698,2]
[361621149,1747645465092,-420.0,0.00013698,2]
[361621150,1747645465102,-684.03,0.00013698,2]
[361621151,1747645465111,-498.03,0.00013698,2]
[361621152,1747645465120,-420.0,0.00013698,2]
[361621153,1747645465129,-30.76148039,0.00013698,2]
[361621154,1747645465149,-166.70830865,0.00013698,2]
[361621155,1747645465159,-420.0,0.00013698,2]
[361621156,1747645465168,-413.29169135,0.00013698,2]
[361621157,1747645465185,-25.50830865,0.00013698,2]
[361621158,1747645465195,-420.0,0.00013698,2]
[361621159,1747645465205,-562.0,0.00013698,2]
[361621160,1747645465215,-420.0,0.00013698,2]
[361621161,1747645465224,-609.56,0.00013698,2]
[361621162,1747645465233,-420.0,0.00013698,2]
[361621163,1747645465244,-420.0,0.00013698,2]
[361621164,1747645465254,-669.9,0.00013698,2]
[361621165,1747645465264,-63.89169135,0.00013698,2]
[361621166,1747645465284,-150.0,0.00013698,2]
[361621167,1747645465295,-206.10830865,0.00013698,2]
[361621168,1747645465305,-400.0,0.00013698,2]
[361621169,1747645465315,-853.31,0.00013698,2]
[361621170,1747645465324,-170.76829,0.00013698,2]
[361621171,1747645465333,-822.75,0.00013698,2]
[361621172,1747645465343,-525.1,0.00013698,2]
[361621173,1747645465352,-420.0,0.00013698,2]
[361621174,1747645465362,-687.28,0.00013698,2]
[361621175,1747645465371,-420.0,0.00013698,2]
[361621176,1747645465380,-420.0,0.00013698,2]
[361621177,1747645465389,-420.0,0.00013698,2]
[361621178,1747645465399,-447.81240899,0.00013698,2]
[361621179,1747645465408,-420.0,0.00013698,2]
[361621180,1747645465417,-420.0,0.00013698,2]
[361621181,1747645465426,-420.0,0.00013698,2]
[361621182,1747645465435,-749.86,0.00013698,2]
[361621183,1747645465444,-647.35,0.00013698,2]
[361621184,1747645465453,-610.35099236,0.00013698,2]
[361621185,1747645465472,-78.75900764,0.00013698,2]
[361621186,1747645465481,-102.57099236,0.00013698,2]
[361621187,1747645465499,-297.42900764,0.00013698,2]
[361621188,1747645465508,-702.57099236,0.00013698,2]
[361621189,1747645465519,-62.73900764,0.00013698,2]
[361621190,1747645465528,-103.21099236,0.00013698,2]
[361621191,1747645465545,-160.49868443,0.00013698,2]
[361621192,1747645465606,-156.29032321,0.00013698,2]
[361621193,1747645465616,-505.04,0.00013698,2]
[361621194,1747645465625,-338.66967679,0.00013698,2]
[361621195,1747645465683,-154.95163537,0.00013698,2]
[361621196,1747645465702,-15.69868784,0.00013698,2]
[361621197,1747645465712,-420.0,0.00013698,2]
[361621198,1747645465722,-554.006859,0.00013698,2]
[361621199,1747645465731,-736.57,0.00013698,2]
[361621200,1747645465742,-400.0,0.00013698,2]
[361621201,1747645465752,-705.276636,0.00013698,2]
[361621202,1747645465761,-420.0,0.00013698,2]
[361621203,1747645465771,-400.0,0.00013698,2]
[361621204,1747645465781,-420.0,0.00013698,2]
[361621205,1747645465791,-456.94,0.00013698,2]
[361621206,1747645465801,-400.0,0.00013698,2]
[361621207,1747645465810,-420.0,0.00013698,2]
[361621208,1747645465820,-594.66,0.00013698,2]
[361621209,1747645465829,-420.0,0.00013698,2]
[361621210,1747645465838,-656.92,0.00013698,2]
[361621211,1747645465849,-420.0,0.00013698,2]
[361621212,1747645465858,-420.0,0.00013698,2]
[361621213,1747645465867,-495.66781716,0.00013698,2]
[361621214,1747645465885,-15.71218284,0.00013698,2]
[361621215,1747645465894,-491.5,0.00013698,2]
[361621216,1747645465904,-420.0,0.00013698,2]
[361621217,1747645465913,-420.0,0.00013698,2]
[361621218,1747645465922,-420.0,0.00013698,2]
[361621219,1747645465932,-420.0,0.00013698,2]
[361621220,1747645465942,-2393.97,0.00013698,2]
[361621221,1747645465951,-418.81781716,0.00013698,2]
[361621222,1747645465963,-1300.96218284,0.00013698,2]
[361621223,1747645465973,-420.0,0.00013698,2]
[361621224,1747645465983,-420.0,0.00013698,2]
[361621225,1747645465996,-420.0,0.00013698,2]
[361621226,1747645466006,-684.20781716,0.00013698,2]
[361621227,1747645466025,-446.13218284,0.00013698,2]
[361621228,1747645466035,-513.13,0.00013698,2]
[361621229,1747645466044,-420.0,0.00013698,2]
[361621230,1747645466054,-420.0,0.00013698,2]
[361621231,1747645466063,-420.0,0.00013698,2]
[361621232,1747645466073,-737.49,0.00013698,2]
[361621233,1747645466082,-288.41781716,0.00013698,2]
[361621234,1747645466101,-728.49218284,0.00013698,2]
[361621235,1747645466111,-361.92,0.00013698,2]
[361621236,1747645466120,-420.0,0.00013698,2]
[361621237,1747645466130,-1041.17,0.00013698,2]
[361621238,1747645466139,-420.0,0.00013698,2]
[361621239,1747645466149,-273.58781716,0.00013698,2]
[361621240,1747645466161,-1676.44218284,0.00013698,2]
[361621241,1747645466171,-588.79,0.00013698,2]
[361621242,1747645466180,-420.0,0.00013698,2]
[361621243,1747645466189,-559.93781716,0.00013698,2]
[361621244,1747645466201,-426.71218284,0.00013698,2]
[361621245,1747645466210,-465.45,0.00013698,2]
[361621246,1747645466220,-516.44,0.00013698,2]
[361621247,1747645466229,-420.0,0.00013698,2]
[361621248,1747645466239,-420.0,0.00013698,2]
[361621249,1747645466251,-420.0,0.00013698,2]
[361621250,1747645466262,-420.0,0.00013698,2]
[361621251,1747645466275,-156.56781716,0.00013698,2]
[361621252,1747645466300,-392.67218284,0.00013698,2]
[361621253,1747645466310,-412.46781716,0.00013698,2]
[361621254,1747645466348,-730.75218284,0.00013698,2]
[361621255,1747645466359,-266.13781716,0.00013698,2]
[361621256,1747645466370,-442.74197589,0.00013698,2]
[361621257,1747645466387,-244.17020695,0.00013698,2]
[361621258,1747645466397,-445.22544628,0.00013698,2]
[361621259,1747645466415,-262.78455372,0.00013698,2]
[361621260,1747645466425,-455.39,0.00013698,2]
[361621261,1747645466434,-244.18544628,0.00013698,2]
[361621262,1747645466446,-151.0,0.00013698,2]
[361621263,1747645466459,-156.0,0.00013698,2]
[361621264,1747645466483,-207.4,0.00013698,2]
[361621265,1747645466508,-127.38455372,0.00013698,2]
[361621266,1747645466518,-27.61544628,0.00013698,2]
[361621267,1747645466537,-668.65185757,0.00013698,2]
[361621268,1747645466559,-74.38269615,0.00013698,2]
[361621269,1747645466569,-594.26916142,0.00013698,2]
[361621270,1747645466593,-151.0,0.00013698,2]
[361621271,1747645466604,-274.67083858,0.00013698,2]
[361621272,1747645466615,-187.276961,0.00013698,2]
[361621273,1747645466624,-600.09,0.00013698,2]
[361621274,1747645466634,-137.16817057,0.00013698,2]
[361621275,1747645466646,-329.80182943,0.00013698,2]
[361621276,1747645466913,-62.19817057,0.00013698,2]
[361621277,1747645466925,-332.64065548,0.00013698,2]
[361621278,1747645466936,-153.134578,0.00013698,2]
[361621279,1747645466945,-14.22476652,0.00013698,2]
[361621280,1747645466968,-405.77523348,0.00013698,2]
[361621281,1747645466978,-94.22476652,0.00013698,2]
[361621282,1747645466990,-200.0,0.00013698,2]
[361621283,1747645467010,-1090.08523348,0.00013698,2]
[361621284,1747645467019,-244.91476652,0.00013698,2]
[361621285,1747645467037,-175.08523348,0.00013698,2]
[361621286,1747645467047,-420.0,0.00013698,2]
[361621287,1747645467057,-1317.61,0.00013698,2]
[361621288,1747645467067,-420.0,0.00013698,2]
[361621289,1747645467077,-1020.20886652,0.00013698,2]
[361621290,1747645467100,-17.93113348,0.00013698,2]
[361621291,1747645467109,-420.0,0.00013698,2]
[361621292,1747645467120,-504.63,0.00013698,2]
[361621293,1747645467129,-161.115089,0.00013698,2]
[361621294,1747645467139,-420.0,0.00013698,2]
[361621295,1747645467149,-420.0,0.00013698,2]
[361621296,1747645467159,-128.73546323,0.00013698,2]
[361621297,1747645467182,-163.69254391,0.00013698,2]
[361621298,1747645467206,-127.57199286,0.00013698,2]
[361621299,1747645467216,-292.42800714,0.00013698,2]
[361621300,1747645467235,-127.57199286,0.00013698,2]
[361621301,1747645467258,-372.42800714,0.00013698,2]
[361621302,1747645467282,-163.69254391,0.00013698,2]
[361621303,1747645467306,-3.23944895,0.00013698,2]
[361621304,1747645467327,-196.76055105,0.00013698,2]
[361621305,1747645467351,-637.45944895,0.00013698,2]
[361621306,1747645467371,-420.0,0.00013698,2]
[361621307,1747645467392,-368.73362513,0.00013698,2]
[361621308,1747645467412,-905.38,0.00013698,2]
[361621309,1747645467431,-168.42692592,0.00013698,2]
[361621310,1747645467457,-251.57307408,0.00013698,2]
[361621311,1747645467466,-313.59955378,0.00013698,2]
[361621312,1747645467490,-106.40044622,0.00013698,2]
[361621313,1747645467502,-57.29209769,0.00013698,2]
[361621314,1747645467520,-163.69254391,0.00013698,2]
[361621315,1747645467539,-531.0353584,0.00013698,2]
[361621316,1747645467549,-420.0,0.00013698,2]
[361621317,1747645467558,-48.9646416,0.00013698,2]
[361621318,1747645467575,-110.8997974,0.00013698,2]
[361621319,1747645467585,-389.1002026,0.00013698,2]
[361621320,1747645467602,-30.8997974,0.00013698,2]
[361621321,1747645467611,-469.1002026,0.00013698,2]
[361621322,1747645467628,-30.8997974,0.00013698,2]
[361621323,1747645467637,-412.67210577,0.00013698,2]